[Event "RUS-ch Rapid 2021"]
[Site "Sochi"]
[Date "2021.10.13"]
[Round "11.9"]
[White "Popov, Valerij"]
[Black "Sarana, Alexey"]
[Result "1-0"]
[ECO "D37"]
[WhiteElo "2537"]
[BlackElo "2649"]
[Annotator "RC"]
[PlyCount "87"]
[EventDate "2021.10.12"]
[EventType "swiss"]
[EventCountry "RUS"]
[SourceTitle "playchess.com"]
[Source "ChessBase"]
[SourceQuality "1"]
[TimeControl "900+10"]

1. Nf3 {[%emt 0:00:00]} d5 {[%emt 0:00:04]} 2. d4 {[%emt 0:00:01]} Nf6 {
[%emt 0:00:02]} 3. c4 {[%emt 0:00:03]} e6 {[%emt 0:00:00]} 4. e3 {[%emt 0:00:
00]} Be7 {[%emt 0:00:06]} 5. Nc3 {[%emt 0:00:09]} O-O {[%emt 0:00:03]} 6. Qc2 {
[%emt 0:00:16]} Nbd7 {[%emt 0:00:19]} 7. cxd5 {[%emt 0:00:40]} exd5 {[%emt 0:
00:00]} 8. Bd3 {[%emt 0:00:06]} c6 {[%emt 0:00:14]} 9. O-O {[%emt 0:00:26]} Bd6
{[%emt 0:00:00]} 10. Bd2 {[%emt 0:00:30]} Re8 {[%emt 0:00:00]} 11. Rfe1 {
[%emt 0:00:38]} Nf8 {[%emt 0:02:21]} 12. h3 {[%emt 0:00:00]} Ng6 {[%emt 0:00:
16]} 13. Rab1 {[%emt 0:00:14]} a5 {[%emt 0:01:44]} 14. a3 {[%emt 0:00:00]} Bc7
{[%emt 0:00:25]} 15. b4 {[%emt 0:00:11]} axb4 {[%emt 0:00:00]} 16. axb4 {
[%emt 0:00:02]} Qd6 {[%emt 0:00:13]} 17. e4 {[%emt 0:00:14]} dxe4 {[%emt 0:00:
15]} 18. Nxe4 {[%emt 0:00:00]} Nxe4 {[%emt 0:00:04]} 19. Bxe4 {[%emt 0:00:30]}
Be6 {[%emt 0:00:03]} 20. b5 {[%emt 0:00:26]} Ra2 {[%emt 0:03:01]} 21. Qc5 {
[%emt 0:00:33]} Rd8 {[%emt 0:06:39]} 22. Qxd6 {[%emt 0:01:14]} Bxd6 {[%emt 0:
00:04]} 23. bxc6 {[%emt 0:00:08]} bxc6 {[%emt 0:00:00]} 24. Bxc6 {[%emt 0:00:
13]} Bf4 {[%emt 0:00:02]} 25. Bb4 {[%emt 0:03:35]} h6 {[%emt 0:00:09]} 26. d5 {
[%emt 0:00:50]} Bf5 {[%emt 0:00:00]} 27. Ra1 {[%emt 0:00:06]} Rxa1 {[%emt 0:00:
31]} 28. Rxa1 {[%emt 0:00:04]} Be4 {[%emt 0:00:00]} 29. Ra8 {[%emt 0:01:52]}
Rxa8 {[%emt 0:00:01]} 30. Bxa8 {[%emt 0:00:02]} Bb8 {[%emt 0:01:57]} 31. Nd2 {
[%emt 0:00:19]} Bd3 {[%emt 0:00:06]} 32. d6 {[%emt 0:00:26]} Ne5 {[%emt 0:00:
04]} 33. f4 {[%emt 0:00:44]} Ng6 {[%emt 0:00:19]} 34. g3 {[%emt 0:01:05]} Nf8 {
[%emt 0:00:19]} 35. Bc6 {[%emt 0:00:47]} Bf5 {[%emt 0:00:08]} 36. Kg2 {[%emt 0:
00:19]} Ne6 {[%emt 0:00:37]} 37. Nf3 {[%emt 0:01:14]} Nd8 {[%emt 0:00:37]} 38.
Bd5 {[%emt 0:00:11]} Be6 {[%emt 0:00:00]} 39. Bxe6 {[%emt 0:00:19]} Nxe6 {
[%emt 0:00:02]} 40. Ne5 {[%emt 0:00:58]} Ba7 {[%emt 0:00:01]} 41. d7 {[%emt 0:
00:19]} Bb6 {[%emt 0:00:02]} 42. Be7 {[%emt 0:00:05]} f6 {[%emt 0:00:46]} 43.
Nc6 {[%emt 0:00:08]} Kf7 {[%emt 0:00:01]} 44. d8=Q {[%emt 0:00:10]} 1-0

[Event "RUS-ch Rapid 2021"]
[Site "Sochi"]
[Date "2021.10.13"]
[Round "11.10"]
[White "Vastrukhin, Oleg"]
[Black "Riazantsev, Alexander"]
[Result "0-1"]
[ECO "D02"]
[WhiteElo "2382"]
[BlackElo "2634"]
[Annotator "RC"]
[PlyCount "142"]
[EventDate "2021.10.12"]
[EventType "swiss"]
[EventCountry "RUS"]
[SourceTitle "playchess.com"]
[Source "ChessBase"]
[SourceQuality "1"]
[TimeControl "900+10"]

1. Nf3 {[%emt 0:00:27]} d5 {[%emt 0:00:07]} 2. g3 {[%emt 0:00:05]} Nc6 {
[%emt 0:00:00]} 3. d4 {[%emt 0:00:00]} Bf5 {[%emt 0:00:03]} 4. Bg2 {[%emt 0:00:
05]} e6 {[%emt 0:00:00]} 5. O-O {[%emt 0:00:03]} Nb4 {[%emt 0:00:00]} 6. Na3 {
[%emt 0:00:02]} h5 {[%emt 0:00:00]} 7. c3 {[%emt 0:00:16]} Nc6 {[%emt 0:00:07]}
8. Qb3 {[%emt 0:00:07]} Bxa3 {[%emt 0:00:16]} 9. Qxa3 {[%emt 0:00:20]} Be4 {
[%emt 0:00:06]} 10. Qb3 {[%emt 0:00:43]} b6 {[%emt 0:00:30]} 11. Re1 {[%emt 0:
01:11]} h4 {[%emt 0:02:58]} 12. Qa4 {[%emt 0:01:28]} Qd7 {[%emt 0:02:35]} 13.
Nxh4 {[%emt 0:00:00]} Bxg2 {[%emt 0:00:11]} 14. Kxg2 {[%emt 0:00:43]} O-O-O {
[%emt 0:00:37]} 15. Qa6+ {[%emt 0:00:21]} Kb8 {[%emt 0:00:02]} 16. a4 {[%emt 0:
00:10]} f6 {[%emt 0:02:52]} 17. Ng6 {[%emt 0:04:42]} Rh7 {[%emt 0:00:00]} 18.
h4 {[%emt 0:00:14]} e5 {[%emt 0:01:56]} 19. dxe5 {[%emt 0:00:17]} fxe5 {
[%emt 0:00:00]} 20. Bg5 {[%emt 0:00:18]} Re8 {[%emt 0:01:25]} 21. Qb5 {[%emt 0:
00:36]} Qd6 {[%emt 0:00:06]} 22. Nxe5 {[%emt 0:01:01]} Rxe5 {[%emt 0:00:02]}
23. Bf4 {[%emt 0:00:00]} Nf6 {[%emt 0:00:20]} 24. a5 {[%emt 0:00:34]} Qc5 {
[%emt 0:01:52]} 25. Qxc5 {[%emt 0:00:17]} bxc5 {[%emt 0:00:00]} 26. Bxe5 {
[%emt 0:00:03]} Nxe5 {[%emt 0:00:01]} 27. a6 {[%emt 0:00:01]} c6 {[%emt 0:00:
46]} 28. Ra5 {[%emt 0:01:11]} Ned7 {[%emt 0:00:25]} 29. c4 {[%emt 0:00:36]} Kc7
{[%emt 0:00:56]} 30. cxd5 {[%emt 0:00:23]} Nxd5 {[%emt 0:00:00]} 31. e4 {
[%emt 0:00:08]} Nb4 {[%emt 0:00:04]} 32. Re2 {[%emt 0:00:39]} g6 {[%emt 0:00:
56]} 33. e5 {[%emt 0:00:09]} Re7 {[%emt 0:00:03]} 34. f4 {[%emt 0:00:21]} Kb6 {
[%emt 0:00:04]} 35. Ra1 {[%emt 0:00:05]} c4 {[%emt 0:00:21]} 36. Rd1 {[%emt 0:
00:20]} Nd5 {[%emt 0:00:26]} 37. Kf3 {[%emt 0:00:58]} Nc5 {[%emt 0:00:12]} 38.
Rd4 {[%emt 0:00:15]} Kb5 {[%emt 0:00:07]} 39. Rc2 {[%emt 0:00:08]} Nb3 {
[%emt 0:00:09]} 40. Rd1 {[%emt 0:00:50]} Kc5 {[%emt 0:00:01]} 41. Ke4 {[%emt 0:
00:55]} Nf6+ {[%emt 0:00:27]} 42. Kf3 {[%emt 0:00:05]} Nd5 {[%emt 0:00:02]} 43.
Ke4 {[%emt 0:00:03]} Nf6+ {[%emt 0:00:17]} 44. Kf3 {[%emt 0:00:03]} Nd5 {
[%emt 0:00:00]} 45. Ke4 {[%emt 0:00:20]} Nf6+ {[%emt 0:00:23]} 46. Kf3 {
[%emt 0:00:01]} Nd5 {[%emt 0:00:02]} 47. Ke4 {[%emt 0:00:53]} Nb4 {[%emt 0:00:
00]} 48. Rh2 {[%emt 0:00:16]} Nd3 {[%emt 0:00:05]} 49. h5 {[%emt 0:00:06]} gxh5
{[%emt 0:00:00]} 50. Rxd3 {[%emt 0:00:08]} cxd3 {[%emt 0:00:02]} 51. Kxd3 {
[%emt 0:00:00]} Rg7 {[%emt 0:00:34]} 52. Rh3 {[%emt 0:00:04]} Kd5 {[%emt 0:00:
06]} 53. Ke3 {[%emt 0:00:07]} Nd4 {[%emt 0:00:21]} 54. Kf2 {[%emt 0:00:12]} Nf5
{[%emt 0:00:02]} 55. Kf3 {[%emt 0:00:15]} c5 {[%emt 0:00:00]} 56. Rxh5 {
[%emt 0:00:24]} Nxg3 {[%emt 0:00:11]} 57. Rh8 {[%emt 0:00:01]} Nf5 {[%emt 0:00:
15]} 58. Rd8+ {[%emt 0:00:06]} Kc4 {[%emt 0:00:13]} 59. Ke4 {[%emt 0:00:25]}
Nd4 {[%emt 0:00:01]} 60. Rb8 {[%emt 0:00:27]} Rg1 {[%emt 0:01:03]} 61. Ke3 {
[%emt 0:00:09]} Re1+ {[%emt 0:00:21]} 62. Kf2 {[%emt 0:00:00]} Re2+ {[%emt 0:
00:15]} 63. Kg3 {[%emt 0:00:02]} Nc6 {[%emt 0:00:12]} 64. Rb7 {[%emt 0:00:13]}
Kd5 {[%emt 0:00:01]} 65. Kf3 {[%emt 0:00:18]} Nd4+ {[%emt 0:00:05]} 66. Kg3 {
[%emt 0:00:03]} Ke4 {[%emt 0:00:21]} 67. Rxa7 {[%emt 0:00:10]} Rxb2 {[%emt 0:
00:02]} 68. Rc7 {[%emt 0:00:12]} Ne6 {[%emt 0:00:16]} 69. Rc6 {[%emt 0:00:21]}
Kf5 {[%emt 0:00:01]} 70. a7 {[%emt 0:00:11]} Ra2 {[%emt 0:00:02]} 71. Rc8 {
[%emt 0:00:11]} Rxa7 {[%emt 0:00:03]} 0-1

[Event "RUS-ch Rapid 2021"]
[Site "Sochi"]
[Date "2021.10.13"]
[Round "11.11"]
[White "Smirnov, Timofey"]
[Black "Dreev, Aleksey"]
[Result "0-1"]
[ECO "B45"]
[WhiteElo "2409"]
[BlackElo "2635"]
[Annotator "RC"]
[PlyCount "66"]
[EventDate "2021.10.12"]
[EventType "swiss"]
[EventCountry "RUS"]
[SourceTitle "playchess.com"]
[Source "ChessBase"]
[SourceQuality "1"]
[TimeControl "900+10"]

1. e4 {[%emt 0:00:04]} c5 {[%emt 0:00:06]} 2. Nf3 {[%emt 0:00:00]} e6 {[%emt 0:
00:02]} 3. d4 {[%emt 0:00:11]} cxd4 {[%emt 0:00:02]} 4. Nxd4 {[%emt 0:00:00]}
Nf6 {[%emt 0:00:00]} 5. Nc3 {[%emt 0:00:00]} Nc6 {[%emt 0:00:08]} 6. Ndb5 {
[%emt 0:00:01]} Bc5 {[%emt 0:00:06]} 7. Bf4 {[%emt 0:00:04]} O-O {[%emt 0:00:
35]} 8. Bc7 {[%emt 0:00:03]} Qe7 {[%emt 0:00:00]} 9. Bd6 {[%emt 0:00:00]} Bxd6
{[%emt 0:00:08]} 10. Qxd6 {[%emt 0:00:12]} Qd8 {[%emt 0:00:05]} 11. O-O-O {
[%emt 0:01:33]} a6 {[%emt 0:00:17]} 12. Nd4 {[%emt 0:00:20]} Ne7 {[%emt 0:00:
52]} 13. f3 {[%emt 0:04:27]} b5 {[%emt 0:00:13]} 14. Nb3 {[%emt 0:00:24]} Ne8 {
[%emt 0:03:05]} 15. Qd2 {[%emt 0:00:36]} Qc7 {[%emt 0:00:58]} 16. g4 {[%emt 0:
00:57]} b4 {[%emt 0:00:27]} 17. Na4 {[%emt 0:00:49]} Rb8 {[%emt 0:01:13]} 18.
Nac5 {[%emt 0:01:00]} d6 {[%emt 0:02:21]} 19. Nxa6 {[%emt 0:00:09]} Bxa6 {
[%emt 0:00:00]} 20. Bxa6 {[%emt 0:00:03]} Qa7 {[%emt 0:00:00]} 21. Qe2 {
[%emt 0:00:31]} Rb6 {[%emt 0:00:03]} 22. Bb5 {[%emt 0:00:20]} Nc7 {[%emt 0:00:
34]} 23. Bc4 {[%emt 0:00:38]} Qxa2 {[%emt 0:00:02]} 24. Rd4 {[%emt 0:00:28]} d5
{[%emt 0:00:57]} 25. exd5 {[%emt 0:00:27]} Ncxd5 {[%emt 0:00:06]} 26. f4 {
[%emt 0:00:18]} Nc6 {[%emt 0:00:54]} 27. Re4 {[%emt 0:00:51]} Nc3 {[%emt 0:00:
53]} 28. bxc3 {[%emt 0:02:15]} bxc3 {[%emt 0:00:03]} 29. Qd3 {[%emt 0:02:25]}
Rxb3 {[%emt 0:01:02]} 30. cxb3 {[%emt 0:00:13]} Qb2+ {[%emt 0:00:10]} 31. Kd1 {
[%emt 0:00:00]} Rd8 {[%emt 0:00:57]} 32. Bd5 {[%emt 0:00:32]} c2+ {[%emt 0:00:
38]} 33. Qxc2 {[%emt 0:00:12]} Rxd5+ {[%emt 0:00:06]} 0-1

[Event "RUS-ch Rapid 2021"]
[Site "Sochi"]
[Date "2021.10.13"]
[Round "11.12"]
[White "Afanasiev, Nikita"]
[Black "Bryakin, Mikhail"]
[Result "1-0"]
[ECO "B12"]
[WhiteElo "2560"]
[BlackElo "2498"]
[Annotator "ChessBase"]
[PlyCount "97"]
[EventDate "2021.10.12"]
[EventType "swiss"]
[EventCountry "RUS"]
[SourceTitle "playchess.com"]
[Source "ChessBase"]
[SourceQuality "1"]
[TimeControl "900+10"]

1. e4 {[%emt 0:00:08]} c6 {[%emt 0:00:10]} 2. d4 {[%emt 0:00:12]} d5 {[%emt 0:
00:11]} 3. e5 {[%emt 0:00:08]} Bf5 {[%emt 0:00:03]} 4. Nd2 {[%emt 0:00:00]} e6
{[%emt 0:00:03]} 5. Nb3 {[%emt 0:00:31]} Nd7 {[%emt 0:00:00]} 6. Nf3 {[%emt 0:
00:04]} Ne7 {[%emt 0:00:04]} 7. Be2 {[%emt 0:00:00]} a5 {[%emt 0:00:03]} 8. a4
{[%emt 0:00:00]} h6 {[%emt 0:00:04]} 9. O-O {[%emt 0:00:16]} Bh7 {[%emt 0:00:
00]} 10. c3 {[%emt 0:00:05]} Nf5 {[%emt 0:00:01]} 11. Ne1 {[%emt 0:00:02]} Be7
{[%emt 0:00:02]} 12. Nd3 {[%emt 0:00:14]} O-O {[%emt 0:00:04]} 13. Nf4 {
[%emt 0:00:03]} Nh4 {[%emt 0:01:55]} 14. g3 {[%emt 0:00:00]} Ng6 {[%emt 0:00:
03]} 15. Ng2 {[%emt 0:00:27]} f5 {[%emt 0:00:40]} 16. h4 {[%emt 0:00:09]} Re8 {
[%emt 0:00:18]} 17. h5 {[%emt 0:00:17]} Nh8 {[%emt 0:00:09]} 18. Nf4 {[%emt 0:
00:04]} Bg5 {[%emt 0:00:03]} 19. c4 {[%emt 0:00:06]} Bxf4 {[%emt 0:00:09]} 20.
Bxf4 {[%emt 0:00:18]} Nf7 {[%emt 0:00:06]} 21. Rc1 {[%emt 0:00:11]} Ng5 {
[%emt 0:00:07]} 22. Rc3 {[%emt 0:00:34]} Ne4 {[%emt 0:00:05]} 23. Rc1 {[%emt 0:
00:56]} Qe7 {[%emt 0:00:00]} 24. Nd2 {[%emt 0:00:15]} Nxd2 {[%emt 0:00:08]} 25.
Qxd2 {[%emt 0:00:02]} Kh8 {[%emt 0:00:05]} 26. b3 {[%emt 0:00:27]} Nb6 {
[%emt 0:00:14]} 27. Qa2 {[%emt 0:00:11]} Rec8 {[%emt 0:00:19]} 28. Rfd1 {
[%emt 0:00:08]} Bg8 {[%emt 0:00:18]} 29. Rc2 {[%emt 0:00:12]} c5 {[%emt 0:00:
07]} 30. Qb2 {[%emt 0:00:45]} cxd4 {[%emt 0:00:10]} 31. Qxd4 {[%emt 0:00:06]}
Rc6 {[%emt 0:00:10]} 32. Be3 {[%emt 0:01:53]} Rac8 {[%emt 0:03:11]} 33. Bf3 {
[%emt 0:00:46]} Bf7 {[%emt 0:02:23]} 34. Qd2 {[%emt 0:00:34]} Qb4 {[%emt 0:02:
05]} 35. Qxb4 {[%emt 0:01:03]} axb4 {[%emt 0:00:02]} 36. Rcd2 {[%emt 0:00:00]}
Nd7 {[%emt 0:01:06]} 37. Bf4 {[%emt 0:01:39]} Nc5 {[%emt 0:00:16]} 38. cxd5 {
[%emt 0:00:11]} exd5 {[%emt 0:00:01]} 39. Bxd5 {[%emt 0:01:28]} Bxd5 {[%emt 0:
00:07]} 40. Rxd5 {[%emt 0:00:00]} Nxb3 {[%emt 0:00:06]} 41. Rb5 {[%emt 0:00:03]
} Nc5 {[%emt 0:00:23]} 42. Rxb4 {[%emt 0:00:05]} Ra8 {[%emt 0:00:12]} 43. Be3 {
[%emt 0:00:08]} Ne6 {[%emt 0:00:14]} 44. Rd6 {[%emt 0:00:39]} Raa6 {[%emt 0:00:
10]} 45. Rd7 {[%emt 0:01:33]} b6 {[%emt 0:00:07]} 46. Rd6 {[%emt 0:00:35]} Rxd6
{[%emt 0:00:18]} 47. exd6 {[%emt 0:00:00]} b5 {[%emt 0:00:09]} 48. axb5 {
[%emt 0:00:17]} Rxd6 {[%emt 0:00:01]} 49. b6 {[%emt 0:00:09]} 1-0

[Event "RUS-ch Rapid 2021"]
[Site "Sochi"]
[Date "2021.10.13"]
[Round "11.13"]
[White "Kukhmazov, Arsen"]
[Black "Lysyj, Igor"]
[Result "1/2-1/2"]
[ECO "E16"]
[WhiteElo "2472"]
[BlackElo "2603"]
[Annotator "RC"]
[PlyCount "96"]
[EventDate "2021.10.12"]
[EventType "swiss"]
[EventCountry "RUS"]
[SourceTitle "playchess.com"]
[Source "ChessBase"]
[SourceQuality "1"]
[TimeControl "900+10"]

1. d4 {[%emt 0:00:00]} Nf6 {[%emt 0:00:04]} 2. c4 {[%emt 0:00:01]} e6 {[%emt 0:
00:00]} 3. Nf3 {[%emt 0:00:00]} b6 {[%emt 0:00:00]} 4. g3 {[%emt 0:00:20]} Bb7
{[%emt 0:00:01]} 5. Bg2 {[%emt 0:00:00]} Bb4+ {[%emt 0:00:00]} 6. Bd2 {[%emt 0:
00:00]} c5 {[%emt 0:00:03]} 7. Bxb4 {[%emt 0:00:00]} cxb4 {[%emt 0:00:00]} 8.
Qd3 {[%emt 0:00:34]} O-O {[%emt 0:00:00]} 9. O-O {[%emt 0:00:00]} d6 {[%emt 0:
00:00]} 10. Nbd2 {[%emt 0:00:00]} Qe7 {[%emt 0:00:00]} 11. a3 {[%emt 0:03:40]}
bxa3 {[%emt 0:00:39]} 12. Qxa3 {[%emt 0:00:54]} Re8 {[%emt 0:01:17]} 13. b4 {
[%emt 0:00:59]} e5 {[%emt 0:01:03]} 14. e3 {[%emt 0:00:30]} Nbd7 {[%emt 0:00:
28]} 15. Rfc1 {[%emt 0:00:11]} Rec8 {[%emt 0:01:11]} 16. Nxe5 {[%emt 0:03:39]}
Nxe5 {[%emt 0:00:19]} 17. dxe5 {[%emt 0:00:00]} dxe5 {[%emt 0:00:12]} 18. Bxb7
{[%emt 0:00:00]} Qxb7 {[%emt 0:00:01]} 19. c5 {[%emt 0:00:10]} bxc5 {[%emt 0:
01:14]} 20. bxc5 {[%emt 0:00:00]} Qd5 {[%emt 0:00:25]} 21. Rc2 {[%emt 0:02:14]}
h5 {[%emt 0:00:00]} 22. Qb4 {[%emt 0:01:01]} e4 {[%emt 0:05:11]} 23. h4 {
[%emt 0:00:48]} Rc7 {[%emt 0:01:02]} 24. Qd4 {[%emt 0:00:38]} Qe6 {[%emt 0:00:
20]} 25. Kg2 {[%emt 0:01:53]} Rac8 {[%emt 0:00:00]} 26. Ra4 {[%emt 0:00:36]}
Qc6 {[%emt 0:03:23]} 27. Nb3 {[%emt 0:00:28]} Qe6 {[%emt 0:01:16]} 28. Nd2 {
[%emt 0:00:06]} Qc6 {[%emt 0:00:44]} 29. Nb3 {[%emt 0:00:00]} Qe8 {[%emt 0:00:
21]} 30. Ra6 {[%emt 0:00:54]} Rb8 {[%emt 0:00:31]} 31. Nd2 {[%emt 0:00:13]} Qb5
{[%emt 0:00:22]} 32. Rxf6 {[%emt 0:00:29]} gxf6 {[%emt 0:00:06]} 33. Nxe4 {
[%emt 0:00:00]} Qc6 {[%emt 0:00:04]} 34. Kh2 {[%emt 0:00:03]} Kg7 {[%emt 0:00:
00]} 35. Rc4 {[%emt 0:00:26]} Rb1 {[%emt 0:00:18]} 36. Qd3 {[%emt 0:00:10]} Ra1
{[%emt 0:00:06]} 37. Rd4 {[%emt 0:00:04]} Re7 {[%emt 0:00:06]} 38. Qc3 {
[%emt 0:00:14]} Rb1 {[%emt 0:00:14]} 39. Rd6 {[%emt 0:00:09]} Qxe4 {[%emt 0:00:
04]} 40. Qxf6+ {[%emt 0:00:00]} Kh7 {[%emt 0:00:02]} 41. Qh6+ {[%emt 0:00:07]}
Kg8 {[%emt 0:00:00]} 42. Qg5+ {[%emt 0:00:00]} Kf8 {[%emt 0:00:00]} 43. Qh6+ {
[%emt 0:00:00]} Kg8 {[%emt 0:00:01]} 44. Rd8+ {[%emt 0:00:44]} Re8 {[%emt 0:00:
02]} 45. Qg5+ {[%emt 0:00:02]} Kf8 {[%emt 0:00:00]} 46. Qh6+ {[%emt 0:00:02]}
Kg8 {[%emt 0:00:11]} 47. Qg5+ {[%emt 0:00:02]} Kf8 {[%emt 0:00:00]} 48. Qh6+ {
[%emt 0:00:00]} Kg8 {[%emt 0:00:00]} 1/2-1/2

[Event "RUS-ch Rapid 2021"]
[Site "Sochi"]
[Date "2021.10.13"]
[Round "11.14"]
[White "Ivlev, Aleksey"]
[Black "Kezin, Roman"]
[Result "0-1"]
[ECO "E04"]
[WhiteElo "2315"]
[BlackElo "2492"]
[Annotator "ChessBase"]
[PlyCount "88"]
[EventDate "2021.10.12"]
[EventType "swiss"]
[EventCountry "RUS"]
[SourceTitle "playchess.com"]
[Source "ChessBase"]
[SourceQuality "1"]
[TimeControl "900+10"]

1. d4 {[%emt 0:00:10]} d5 {[%emt 0:00:00]} 2. c4 {[%emt 0:00:00]} e6 {[%emt 0:
00:00]} 3. Nf3 {[%emt 0:00:00]} Nf6 {[%emt 0:00:00]} 4. g3 {[%emt 0:00:00]}
dxc4 {[%emt 0:00:00]} 5. Bg2 {[%emt 0:00:04]} c6 {[%emt 0:00:14]} 6. Ne5 {
[%emt 0:01:44]} Bb4+ {[%emt 0:00:01]} 7. Nc3 {[%emt 0:00:11]} Nd5 {[%emt 0:00:
05]} 8. Bd2 {[%emt 0:00:14]} Nb6 {[%emt 0:00:55]} 9. e3 {[%emt 0:00:29]} N8d7 {
[%emt 0:00:28]} 10. Nf3 {[%emt 0:02:21]} O-O {[%emt 0:00:26]} 11. O-O {[%emt 0:
00:21]} Re8 {[%emt 0:04:03]} 12. e4 {[%emt 0:00:42]} e5 {[%emt 0:00:14]} 13.
dxe5 {[%emt 0:00:27]} Nxe5 {[%emt 0:00:08]} 14. Nxe5 {[%emt 0:00:45]} Rxe5 {
[%emt 0:00:07]} 15. Be3 {[%emt 0:01:00]} Qxd1 {[%emt 0:02:38]} 16. Rfxd1 {
[%emt 0:00:00]} Re8 {[%emt 0:00:00]} 17. Ne2 {[%emt 0:02:35]} f5 {[%emt 0:03:
44]} 18. exf5 {[%emt 0:00:29]} Bxf5 {[%emt 0:00:00]} 19. Nd4 {[%emt 0:00:02]}
Bg6 {[%emt 0:01:41]} 20. a3 {[%emt 0:01:17]} Bc5 {[%emt 0:01:01]} 21. Nf5 {
[%emt 0:02:08]} Bxf5 {[%emt 0:01:40]} 22. Bxc5 {[%emt 0:00:00]} Na4 {[%emt 0:
00:00]} 23. Bd4 {[%emt 0:00:05]} Rad8 {[%emt 0:00:03]} 24. f4 {[%emt 0:02:16]}
Bg4 {[%emt 0:00:02]} 25. Rd2 {[%emt 0:00:19]} Re2 {[%emt 0:00:00]} 26. Rxe2 {
[%emt 0:01:07]} Bxe2 {[%emt 0:00:01]} 27. Be5 {[%emt 0:00:34]} Rd2 {[%emt 0:00:
04]} 28. Bh3 {[%emt 0:00:18]} Nxb2 {[%emt 0:00:47]} 29. Rb1 {[%emt 0:00:04]}
Rd1+ {[%emt 0:00:12]} 30. Rxd1 {[%emt 0:00:06]} Nxd1 {[%emt 0:00:00]} 31. Bd4 {
[%emt 0:00:04]} b6 {[%emt 0:01:18]} 32. Bd7 {[%emt 0:00:21]} c5 {[%emt 0:00:11]
} 33. Be5 {[%emt 0:00:02]} Bd3 {[%emt 0:00:11]} 34. Bg4 {[%emt 0:00:12]} Ne3 {
[%emt 0:00:02]} 35. Be6+ {[%emt 0:00:02]} Kf8 {[%emt 0:00:10]} 36. Bd6+ {
[%emt 0:00:12]} Ke8 {[%emt 0:00:02]} 37. Be5 {[%emt 0:00:00]} Bf5 {[%emt 0:00:
30]} 38. Bxf5 {[%emt 0:00:34]} Nxf5 {[%emt 0:00:02]} 39. Kf2 {[%emt 0:00:02]}
g6 {[%emt 0:00:27]} 40. Bb8 {[%emt 0:00:01]} Kd7 {[%emt 0:00:04]} 41. Be5 {
[%emt 0:00:23]} Nd4 {[%emt 0:00:03]} 42. a4 {[%emt 0:00:07]} c3 {[%emt 0:00:04]
} 43. Ke3 {[%emt 0:00:02]} c2 {[%emt 0:00:01]} 44. Kd2 {[%emt 0:00:06]} Nf3+ {
[%emt 0:00:02]} 0-1

[Event "RUS-ch Rapid 2021"]
[Site "Sochi"]
[Date "2021.10.13"]
[Round "11.15"]
[White "Kokarev, Dmitry"]
[Black "Makarian, Rudik"]
[Result "0-1"]
[ECO "B94"]
[WhiteElo "2579"]
[BlackElo "2470"]
[Annotator "ChessBase"]
[PlyCount "52"]
[EventDate "2021.10.12"]
[EventType "swiss"]
[EventCountry "RUS"]
[SourceTitle "playchess.com"]
[Source "ChessBase"]
[SourceQuality "1"]
[TimeControl "900+10"]

1. e4 {[%emt 0:00:06]} c5 {[%emt 0:00:00]} 2. Nf3 {[%emt 0:00:00]} d6 {[%emt 0:
00:44]} 3. d4 {[%emt 0:00:10]} cxd4 {[%emt 0:00:00]} 4. Nxd4 {[%emt 0:00:02]}
Nf6 {[%emt 0:00:00]} 5. Nc3 {[%emt 0:00:00]} a6 {[%emt 0:00:05]} 6. Bg5 {
[%emt 0:00:09]} Nbd7 {[%emt 0:00:02]} 7. f4 {[%emt 0:00:01]} Qc7 {[%emt 0:00:
02]} 8. Qf3 {[%emt 0:00:02]} b5 {[%emt 0:00:11]} 9. O-O-O {[%emt 0:00:08]} Bb7
{[%emt 0:00:00]} 10. Bd3 {[%emt 0:00:05]} Qb6 {[%emt 0:00:08]} 11. Bxf6 {
[%emt 0:01:38]} Nxf6 {[%emt 0:00:00]} 12. g4 {[%emt 0:00:11]} g6 {[%emt 0:01:
34]} 13. g5 {[%emt 0:00:53]} Nd7 {[%emt 0:00:04]} 14. Nde2 {[%emt 0:00:00]} Bg7
{[%emt 0:00:22]} 15. Nd5 {[%emt 0:00:23]} Bxd5 {[%emt 0:00:24]} 16. exd5 {
[%emt 0:00:01]} Nc5 {[%emt 0:00:07]} 17. f5 {[%emt 0:00:52]} Be5 {[%emt 0:00:
08]} 18. Rdf1 {[%emt 0:00:05]} Qa5 {[%emt 0:01:58]} 19. fxg6 {[%emt 0:00:52]}
fxg6 {[%emt 0:00:03]} 20. a3 {[%emt 0:00:18]} b4 {[%emt 0:00:28]} 21. Bc4 {
[%emt 0:00:04]} Rb8 {[%emt 0:00:49]} 22. a4 {[%emt 0:00:09]} Nxa4 {[%emt 0:00:
50]} 23. b3 {[%emt 0:00:13]} Nb6 {[%emt 0:01:24]} 24. Qg4 {[%emt 0:00:27]} Rc8
{[%emt 0:00:40]} 25. Bd3 {[%emt 0:00:00]} Qxd5 {[%emt 0:00:38]} 26. Nf4 {
[%emt 0:00:45]} Bxf4+ {[%emt 0:00:20]} 0-1